Cogmind - Beta 15 @@@ ROGUE MODE // 2025.06.21 @ 20:52:24 Player: Yurom Result: Destroyed by H-55 Commando with Assault Rifle Performance ------------- Evolutions (2) 1000 Regions Visited (4) 800 Robots Destroyed (49) 245 Value Destroyed (1085) 1085 Prototype IDs (5) 100 Alien Tech Used (0) 0 Bonus (7) 7 TOTAL SCORE: 3237 Bonus ------- Follower Combat Kills 7 Cogmind --------- Core Integrity 0/550 Matter 300/300 Energy 100/100 System Corruption 0% Temperature Cool (0) Movement Core (1350) Ox26 Location -8/Materials Parts ------- > --- POWER (1) -------- (None) > --- PROPULSION (3) --- (None) > --- UTILITY (3) ------ Huge Storage Unit > --- WEAPON (4) ------- (None) > --- INVENTORY (25) --- Light Ion Engine Improved Treads Weight Redist. System Sensor Array Hacking Suite Hacking Suite Hacking Suite Hacking Suite Spread Laser Particle Cannon Peak State ------------ > --- POWER ------------ Light Ion Engine > --- PROPULSION ------- Wheel Wheel Compact Wheel > --- UTILITY ---------- Huge Storage Unit Seismic Detector Core Shielding > --- WEAPON ----------- Advanced Beam Cannon Advanced Beam Cannon Advanced Beam Cannon Mining Claw > --- INVENTORY -------- Light Ion Engine Improved Treads Weight Redist. System Sensor Array Hacking Suite Hacking Suite Hacking Suite Hacking Suite Spread Laser Particle Cannon [Rating: 19] Favorites ----------- Power Light Ion Engine Engine Light Ion Engine Propulsion Light Treads Treads Light Treads Wheel Wheel Flight Unit Cesium-ion Thruster Utility Core Shielding Device Seismic Detector Storage Huge Storage Unit Protection Core Shielding Weapon Rocket Launcher Energy Gun Particle Gun Energy Cannon Advanced Beam Cannon Ballistic Gun Assault Rifle Ballistic Cannon Light Cannon Launcher Rocket Launcher Special Weapon Mining Laser Slashing Weapon Mining Claw Build | -11 -10 -10 -9 -8 ------- Run | Yrd Mat Min Mat Mat Slots Evolved 4 | . . . 2 2 Power . | . . . . . Propulsion 1 | . . . 1 . Utility 1 | . . . 1 . Weapon 2 | . . . . 2 Parts Attached 32 | 6 3 3 20 . Power 5 | 1 1 . 3 . Engine 5 | 1 1 . 3 . Core . | . . . . . Reactor . | . . . . . Propulsion 11 | 2 . . 9 . Treads 3 | 2 . . 1 . Leg . | . . . . . Wheel 5 | . . . 5 . Hover . | . . . . . Flight 3 | . . . 3 . Utility 4 | 1 . 1 2 . Device 1 | . . . 1 . Storage 2 | 1 . . 1 . Processor . | . . . . . Hackware . | . . . . . Protection 1 | . . 1 . . Artifact . | . . . . . Weapon 12 | 2 2 2 6 . Energy Gun 1 | . . . 1 . Energy Cannon 3 | . . . 3 . Ballistic Gun 2 | 2 . . . . Ballistic Cannon 2 | . 2 . . . Launcher 2 | . . 1 1 . Special Weapon 1 | . . 1 . . Impact Weapon . | . . . . . Slashing Weapon 1 | . . . 1 . Piercing Weapon . | . . . . . Special Melee Weapon . | . . . . . Unidentified Prototypes . | . . . . . Parts Lost 17 | . . . 7 10 Power 2 | . . . 1 1 Propulsion 7 | . . . 4 3 Utility 2 | . . . . 2 Weapon 6 | . . . 2 4 Highest Loss Streak 8 | . . . 4 8 To Critical Strikes . | . . . . . Average Backups 7 | . 3 4 9 10 Power 1 | . . . 1 1 Propulsion . | . . . . 1 Utility 2 | . . . 3 6 Weapon 3 | . 2 3 4 2 Tool/Special . | . . . . . Unused Backups 14 | . . . 4 10 Power 2 | . . . 1 1 Propulsion 1 | . . . 1 . Utility 5 | . . . . 5 Weapon 6 | . . . 2 4 Tool/Special . | . . . . . Average Slot Usage (%) 91 | . 84 99 92 75 Engine 11 | . 14 14 10 6 Treads 16 | . 28 28 12 . Wheel 5 | . . . 6 16 Flight 5 | . . . 8 . Device 7 | . . . 10 7 Storage 11 | . 14 14 11 9 Protection 10 | . . 13 11 6 Energy Gun 2 | . . . 3 . Energy Cannon 2 | . . . 1 22 Ballistic Cannon 5 | . 18 19 . . Launcher 6 | . . 1 9 . Special Weapon 1 | . . 6 . . Slashing Weapon 3 | . . . 5 7 Peak Build Rating 19 | 6 6 9 18 19 Average Rating 12 | 4 5 7 14 15 On Entrance 7 | . 6 6 9 16 Naked Turns . | . . . . . Heaviest Build 99 | 11 14 15 99 99 Greatest Support 60 | 40 40 40 60 36 Greatest Overweight (x) 32 | . . . 30 32 Average Overweight (x) 1 | . . . 2 9 Largest Inventory Capacity 25 | 8 8 8 25 25 Average Capacity 17 | 7 8 8 21 25 Most Carried 17 | 2 4 7 17 14 Average Carried 7 | . 3 4 9 10 Final Capacity 25 | 8 8 8 25 25 Final Carried 15 | 1 3 7 15 10 Class Distribution -------------------- 86% | Mutant 12% | Scavenger-Mutant Dominant Class ---------------- Mutant | -10/Materials Mutant | -10/Mines Mutant | -9/Materials Mutant | -8/Materials Resources | -11 -10 -10 -9 -8 ----------- Run | Yrd Mat Min Mat Mat Matter Collected 920 | 113 181 259 367 . Remotely . | . . . . . Salvage Created 1115 | . 199 61 752 103 Parts 77 | . 12 2 58 5 Haulers Intercepted 3 | . . . 3 . Recyclers Shooed 1 | . . 1 . . Parts Field Recycled . | . . . . . Retrieved Matter . | . . . . . Parts Self-Destructed . | . . . . . Prevented . | . . . . . Kills | -11 -10 -10 -9 -8 ------- Run | Yrd Mat Min Mat Mat Combat Hostiles Destroyed 28 | . 5 1 18 4 Melee 1 | . . . 1 . Cannons 12 | . 5 1 2 4 AOE 15 | . . . 15 . Classes Destroyed 11 | . 3 2 6 . Worker 3 | . . . 3 . Builder 7 | . . . 7 . Tunneler 1 | . 1 . . . Hauler 3 | . . . 3 . Recycler 3 | . . 1 2 . Operator 1 | . . . 1 . Watcher 3 | . 1 . 2 . Swarmer 8 | . . 1 4 3 Grunt 15 | . 5 . 10 . Brawler 1 | . . . 1 . Sentry 4 | . . . 3 1 Best Kill Streak 8 | . 3 2 8 3 Combat Bots Only 7 | . 2 1 7 3 Max Kills in Single Turn 4 | . 2 1 4 1 Gunslinging . | . . . . . Exploded 3 | . . . 3 . Melee 1 | . . . 1 . Uniques/NPCs Destroyed . | . . . . . Combat | -11 -10 -10 -9 -8 -------- Run | Yrd Mat Min Mat Mat Hostile Shots Fired 195 | . 26 7 70 92 Missed 55 | . 8 2 18 27 Hits 140 | . 18 5 52 65 Projectile 140 | . 18 5 52 65 Critical Strikes 4 | . . . 2 2 Damage Taken 2287 | . 222 126 757 1182 Core 704 | . 35 18 92 559 Absorbed by Shields . | . . . . . Redirected to Shielding 29 | . . 4 17 8 Regen/Repaired (Parts) 53 | . . . 53 . Core Remaining (%) 85 | 100 . 78 77 . Volleys Fired 106 | . 24 22 44 16 Largest 3 | . 2 2 2 3 Hottest 204 | . 60 133 101 204 Shots Fired 169 | . 48 29 66 26 Gun . | . . . . . Cannon 107 | . 48 12 21 26 Launcher 46 | . . 1 45 . Special 16 | . . 16 . . Kinetic 60 | . 48 12 . . Thermal 63 | . . 16 21 26 Explosive 46 | . . 1 45 . Electromagnetic . | . . . . . Robot Hit Streak 5 | . 3 3 5 3 Robot Miss Streak 8 | . 5 8 5 5 Penetration Max . | . . . . . Secondary Targets . | . . . . . Shots Hit Robots 69 | . 17 4 38 10 Core Hits 63 | . 8 2 48 5 Critical Kills . | . . . . . Critical Parts Destroyed . | . . . . . Critical Strikes . | . . . . . Melee Attacks 33 | . . . 33 . Impact . | . . . . . Slashing 33 | . . . 33 . Piercing . | . . . . . Sneak Attacks 11 | . . . 11 . Combat Hostiles . | . . . . . Follow-up Attacks . | . . . . . Damage Inflicted 3507 | . 312 72 2895 228 Guns . | . . . . . Cannons 851 | . 311 66 246 228 Explosions 2069 | . . . 2069 . Melee 566 | . . . 566 . Ramming 21 | . 1 6 14 . Kinetic 377 | . 311 66 . . Thermal 771 | . . . 543 228 Explosive 1772 | . . . 1772 . Electromagnetic . | . . . . . Impact . | . . . . . Slashing 566 | . . . 566 . Piercing . | . . . . . Highest Corruption . | . . . . . Average Corruption . | . . . . . Corruption Purged . | . . . . . Corruption Blocked . | . . . . . Overload Shots . | . . . . . Overflow Damage 168 | . . . 168 . Projectiles . | . . . . . Explosions 90 | . . . 90 . Melee 78 | . . . 78 . Knockbacks 10 | . 10 . . . Impact . | . . . . . Kinetic 10 | . 10 . . . Secondary . | . . . . . Self-Inflicted Damage 97 | . . 44 53 . Shots 4 | . . 1 3 . Rammed 2 | . 1 1 . . Targets Rammed 2 | . 1 1 . . Kicked . | . . . . . Crushed . | . . . . . Highest Temperature 599 | . 60 40 269 599 Average Temperature 109 | . 32 16 51 396 Received Heat Transfer 426 | . 132 18 222 54 Effects 25 | . . . 2 23 Shutdowns 4 | . . . . 4 Energy Bleed 1 | . . . . 1 Interference 9 | . . . 2 7 Matter Decay 1 | . . . . 1 Short Circuit 3 | . . . . 3 Damage (major) 4 | . . . . 4 Damage (core) 3 | . . . . 3 Siege Activations . | . . . . . Martial Activations . | . . . . . Shielding Activations . | . . . . . Robots Disrupted . | . . . . . Combat Hostiles . | . . . . . Robots Corrupted . | . . . . . Combat Hostiles . | . . . . . Parts Fried . | . . . . . Impact Corruptions . | . . . . . Robots Melted . | . . . . . Combat Hostiles . | . . . . . Parts Melted 3 | . . . 2 1 Heat Transferred 1051 | . . . 644 407 Parts Sabotaged . | . . . . . Parts Stolen . | . . . . . Parts Stripped . | . . . . . Power Chain Reactions . | . . . . . Alert | -11 -10 -10 -9 -8 ------- Run | Yrd Mat Min Mat Mat Maximum Alert Level 1 | . . . 1 . Low Security (%) 58 | 100 100 100 35 100 Level 1 41 | . . . 64 . Level 2 . | . . . . . Level 3 . | . . . . . Level 4 . | . . . . . Level 5 . | . . . . . High Security . | . . . . . Max Security . | . . . . . Peak Influence 347 | . 85 25 347 169 Initial 139 | . . . . 139 Average 128 | . 21 1 187 92 Influence Increases 1344 | . 142 69 1033 100 Destroy 0b10 Robot/C 580 | . 100 40 360 80 Destroy 0b10 Robot/NC 105 | . 10 5 90 . Destroy Leader 122 | . 22 . 80 20 Allied During Kill 1 | . . 1 . . Successful Hack 16 | . 9 . 7 . Disable Machine 180 | . . . 180 . Destroy Structure 325 | . 1 23 301 . Lose Combat Pursuer 15 | . . . 15 . Influence Decreases 1344 | . 142 69 701 432 Entered New Map 193 | . . . . 193 Time Decay 992 | . 142 49 631 170 Lost Part 139 | . . . 70 69 Lost Ally 20 | . . 20 . . Squads Dispatched 5 | . 2 . 2 1 Investigation 1 | . . . 1 . Extermination . | . . . . . Reinforcement 4 | . 2 . 1 1 Assault . | . . . . . Garrison . | . . . . . Intercept . | . . . . . Searches Triggered . | . . . . . Construction Impeded 1 | . . . 1 . Haulers Reinforced . | . . . . . Active Scanning Responses . | . . . . . Cargo Convoy Interrupts . | . . . . . Stealth | -11 -10 -10 -9 -8 --------- Run | Yrd Mat Min Mat Mat Distress Signals 5 | . 2 . 2 1 Communications Jammed . | . . . . . Distress Signals . | . . . . . Times Spotted 44 | . 11 3 23 7 Peak Tracking Total 6 | . 4 3 4 6 Tactical Retreats 1 | . . . 1 . Traps | -11 -10 -10 -9 -8 ------- Run | Yrd Mat Min Mat Mat Traps Triggered . | . . . . . Indirectly . | . . . . . Trap Hack Attempts . | . . . . . Triggered . | . . . . . Disarmed . | . . . . . Reprogrammed . | . . . . . Reused . | . . . . . Traps Extracted . | . . . . . Installed . | . . . . . Triggered . | . . . . . Machines | -11 -10 -10 -9 -8 ---------- Run | Yrd Mat Min Mat Mat Machines Disabled 13 | . 1 . 12 . Max in Single Turn 2 | . 1 . 2 . Machines Repaired . | . . . . . Machines Dismantled . | . . . . . Machines Sabotaged . | . . . . . Overloaded Fab Kills . | . . . . . Hacking | -11 -10 -10 -9 -8 --------- Run | Yrd Mat Min Mat Mat Machines Accessed 6 | . 2 . 4 . Terminals 3 | . 2 . 1 . Fabricators . | . . . . . Repair Stations 1 | . . . 1 . Recycling Units 1 | . . . 1 . Scanalyzers 1 | . . . 1 . Garrison Access . | . . . . . Total Hacks 21 | . 2 . 19 . Successful 17 | . 2 . 15 . Failed 4 | . . . 4 . Catastrophic . | . . . . . Database Lockouts . | . . . . . Manual . | . . . . . Terminals 6 | . 2 . 4 . Fabricators . | . . . . . Repair Stations 2 | . . . 2 . Recycling Units 5 | . . . 5 . Scanalyzers 8 | . . . 8 . Garrison Access . | . . . . . Terminal Hacks 4 | . 2 . 2 . Emergency Access Points 1 | . . . 1 . Locate Traps 1 | . 1 . . . Zone Layout 2 | . 1 . 1 . Fabricator Hacks . | . . . . . Repair Station Hacks 2 | . . . 2 . Scan Component 1 | . . . 1 . Repair 1 | . . . 1 . Recycling Unit Hacks 4 | . . . 4 . Process 1 | . . . 1 . Report Inventory 1 | . . . 1 . Retrieve Matter 2 | . . . 2 . Scanalyzer 7 | . . . 7 . Insert Component 5 | . . . 5 . Analyze 2 | . . . 2 . Garrison Access Hacks . | . . . . . Unauthorized Hacks . | . . . . . Terminals . | . . . . . Fabricators . | . . . . . Repair Stations . | . . . . . Recycling Units . | . . . . . Scanalyzers . | . . . . . Garrison Access . | . . . . . Data Cores Recovered . | . . . . . Used . | . . . . . Hacking Detections 3 | . . . 3 . Full Trace Events 2 | . . . 2 . Feedback Events . | . . . . . Feedback Blocked . | . . . . . Robot Schematics Acquired . | . . . . . Robots Built . | . . . . . Authchips . | . . . . . Time . | . . . . . Total Robot Build Rating . | . . . . . Part Schematics Acquired 1 | . . . 1 . Parts Built . | . . . . . Authchips . | . . . . . Time . | . . . . . Total Part Build Rating . | . . . . . Parts Repaired 1 | . . . 1 . Time 32 | . . . 32 . Parts Recycled . | . . . . . Recycled Matter 179 | . . . 179 . Retrieved Matter 354 | . . . 354 . Retrieved Components . | . . . . . Parts Scanalyzed 2 | . . . 2 . Part Schematics Acquired 1 | . . . 1 . Parts Damaged . | . . . . . Bothacking | -11 -10 -10 -9 -8 ------------ Run | Yrd Mat Min Mat Mat Used RIF Installer . | . . . . . Robots Hacked . | . . . . . Non-combat . | . . . . . Combat . | . . . . . Robot Hacks Applied . | . . . . . Relay Couplers Released . | . . . . . Fabnet Peak Effective % . | . . . . . Robots Rewired . | . . . . . Allies Hacked . | . . . . . Hacks Repelled . | . . . . . Allies | -11 -10 -10 -9 -8 -------- Run | Yrd Mat Min Mat Mat Total Allies 1 | . . 1 . . Largest Group 1 | . . 1 . . Highest-Rated Group 31 | . . 31 . . Highest-Rated Ally 31 | . . 31 . . Total Orders . | . . . . . Ally Attacks 10 | . . 10 . . Total Damage 127 | . . 127 . . Kills 1 | . . 1 . . Allies Corrupted . | . . . . . Allies Melted . | . . . . . Intel | -11 -10 -10 -9 -8 ------- Run | Yrd Mat Min Mat Mat Active Infowar (turns) 3783 | . . . 3673 110 Seismic 3783 | . . . 3673 110 Robot Analysis Total . | . . . . . Derelict Logs Recovered 1 | . . 1 . . Drone Launches . | . . . . . Drone Recoveries . | . . . . . Exploration | -11 -10 -10 -9 -8 ------------- Run | Yrd Mat Min Mat Mat Turns Passed 5802 | 67 525 1065 3702 443 Spaces Moved 1866 | 41 270 498 980 77 Core 40 | 8 . . 12 20 Treads 1257 | 33 270 498 456 . Legs . | . . . . . Wheels 401 | . . . 344 57 Hover . | . . . . . Flight 168 | . . . 168 . Fastest Speed 50 | 50 160 160 116 116 Average Speed 216 | 138 160 160 241 492 Slowest Speed 1650 | 160 160 160 1550 1650 Overloaded Moves . | . . . . . Propulsion Burnouts . | . . . . . Robots Hopped . | . . . . . Potential Cave-ins . | . . . . . Cave-ins Triggered . | . . . . . Exploration Rate (%) 29 | 4 28 69 40 4 Regions Visited 4 Branch Regions 1 Pre-discovered Areas . | . . . . . Known Exits Taken 1 | . . . 1 . Unknown Exits Taken 3 | 1 1 1 . . Scrap Searched 2 | . . 2 . . Spaces Dug 74 | . . 28 46 . Terrain Destroyed 376 | . . 28 348 . Melee 8 | . . . 8 . Projectile 17 | . . 15 2 . AOE 351 | . . 13 338 . Terrain Rammed 1 | . . . 1 . Walls Destroyed . | . . . . . Machines Disabled . | . . . . . Actions | -11 -10 -10 -9 -8 --------- Run | Yrd Mat Min Mat Mat Total 3377 | 49 315 705 2187 121 Wait 1271 | . 14 175 1059 23 Move 1862 | 40 269 497 979 77 Hop . | . . . . . Pick Up 29 | 3 1 5 20 . Fast Attach 16 | 4 2 1 9 . Attach 17 | 2 . 1 12 2 Detach 14 | . 2 1 11 . Swap 6 | . 1 1 4 . Drop 20 | . 1 1 15 3 Fire 106 | . 24 22 44 16 Melee 33 | . . . 33 . Ram 1 | . . . 1 . Kick . | . . . . . Crush 2 | . 1 1 . . Escape Stasis . | . . . . . Rewire . | . . . . . Trap . | . . . . . Miscellaneous . | . . . . . Route ------- -11/Scrapyard -10/Materials (discovered 3 exits: [*Min x2] / [*Sub]) -10/Mines -9/Materials -8/Materials History --------- Turn | Location | Event 24 | -11/Scrapyard | Discovered new exit (range 15) 68 | -11/Scrapyard | Entered Materials 308 | -10/Materials | Build established: Mutant 374 | -10/Materials | Discovered new exit (range 11) 482 | -10/Materials | Discovered new exit (range 5) 487 | -10/Materials | Discovered new exit (range 15) 593 | -10/Materials | Entered Mines 828 | -10/Mines | Received a Mining Laser from a helpful Derelict 1023 | -10/Mines | Learned location of 1 exit from Materials 1503 | -10/Mines | Received a Rocket Launcher from a helpful Derelict 1547 | -10/Mines | Discovered new exit (range 9) 1658 | -10/Mines | Entered Materials 1658 | -9/Materials | Evolved 2 slots: Propulsion x1, Utility x1 1659 | -9/Materials | Identified exit to Materials 3002 | -9/Materials | Destroyed 7 combat bots 3223 | -9/Materials | Repaired Rocket Launcher 3381 | -9/Materials | Lost 4 parts (1p2n1w) 4844 | -9/Materials | Build established: Scavenger-Mutant 5360 | -9/Materials | Entered another Materials area 5360 | -8/Materials | Evolved 2 slots: Weapon x2 5698 | -8/Materials | Core integrity fell below 50% 5753 | -8/Materials | Lost 8 parts (1p2n2u3w) 5764 | -8/Materials | Core integrity fell below 20% 5783 | -8/Materials | Build established: Mutant 5803 | -8/Materials | Destroyed by H-55 Commando with Assault Rifle Last Messages --------------- R-06 Scavenger collects Lgt. Treads. R-06 Scavenger collects Beam Rifle. Penetrated by Slug. Lgt. Ion Engine destroyed. Slug penetrates Wall. Penetrated by Slug. Broken Com. Wheel destroyed. Penetrated by Slug. Core Shielding destroyed. Slug penetrates Wall. Penetrated by Slug. Seismic Detector destroyed. Adv. Beam Cannon destroyed. Penetrated by Slug. Mining Claw destroyed. Broken Wheel destroyed. Slug penetrates Wall. Penetrated by Slug. Broken Adv. Beam Cannon destroyed. Penetrated by Slug. Map ----- +----------------------------------------------------+ | ????????????????????????# #????? | | ????????????????????????# #????? | | ????????????????????????# #????? | | ????????????????????????# #????? | | ????????????????????????# #????? | | ????????????????????????# #????? | | ????????????????????????# #????? | | ????????????????????????# #????? | | ????????????????????????# #????? | | ????????????????????????# #????? | | ????????????????????????# #????? | | ????????????????????????# #????? | | ????????????????????????# #????? | | ????????????????????????# #????? | | ????????????????????????# #????? | | ????????#???????????????# #????? | | ????????# ??????????????# #????? | | ????????# ?????????????# #????? | | ????????# ?#######????# #????? | | ????????# ## / #????# #????? | | ????????? " #????# #????? | | ??????????? "T #????# #????? | | ???????????? ?????# #????? | | ?????????????#! ?????# #????? | | ??????????????# #######;###??? | | ??????????????# # @ #??? | | ??????????????# + """ #??? | | ??????????????# [*# """"" #??? | | ??????????????# [ # """"" #??? | | ??????????????##### """"" #??? | | ??????????????????# """ #??? | | ??????????????????# #??? | | ??????????????????# [#??? | | ??????????????????###########??? | | ???????????????????????????????? | | ???????????????????????????????? | | | | | | | | | | | | | | | | | | | | | | | | | | | | | +----------------------------------------------------+ Best States ------------- Heat Dissipation 31 Energy Generation 18 Energy Capacity 250 Matter Stores 300 Matter Capacity 300 Sight Range 16 Terrain Scan Density 10 Core Shielding 20 Evasion (%) 40 Recoil Reduction 3 Item Schematics ----------------- Imp. Assault Rifle | -9/Materials | Scanalyzed Robot Schematics ------------------ None Fabricated ------------ Nothing Repaired ---------- Rocket Launcher | 24% | -9/Materials Alien Tech Used ----------------- None Achievements -------------- Oops Remodeling Safety First Challenges ------------ None Game ------ Seed AlertSurgeInterpreter Manual? 0 Play Time 00:53:00 Cumulative 7.3 hours Start 2025.06.21 @ 19:12:47 End 2025.06.21 @ 20:52:24 Sessions 3 Manual Loads 0 Difficulty Rogue Special Mode None Game No. 10 Rogue 10 Adventurer 0 Explorer 0 Win Type - Total 0 Types 0/0/0/0/0/0/0/0/0/0 Lore% 1 Gallery% 8 Achievement% 10 Wizard Run 0 Options --------- Layout 0 ASCII 0 Keyboard 0 Movement Mouse Keybinds 0 Fullscreen 1 Font 18/SmallcapsGlow Map View 76x50 Zoom Use 85% Tactical HUD 0 Map Filters NONE Filters NONE Steam 1 RUN: e3c8f446-a333-418a-ac33-f4e4f606bcd1